bitfinex-derivatives/quotes_ETHF0:USTF0_20230401
["timestamp","ask_amount","ask_price","bid_price","bid_amount"]
[1680327525256,1.42709701,1823.4,1823.3,0.78995348]
[1680327525752,0.57088489,1823.4,1823.3,0.78995348]
[1680327526453,0.85621212,1823.4,1823.3,0.21578121]
[1680327529651,1.96361617,1823.6,1823.3,10.84614769]
[1680327529652,0.57125867,1823.6,1823.3,10.84614769]
[1680327529852,0.57125867,1823.7,1823.6,0.819]
[1680327530156,0.57125867,1823.7,1823.6,8.16246732]
[1680327530455,0.57125867,1823.7,1823.6,9.16246732]
[1680327531158,0.57125867,1823.8,1823.6,9.16246732]
[1680327531359,0.57125867,1823.8,1823.7,4.0298]
[1680327531559,0.57125867,1823.8,1823.7,5.0298]
[1680327531859,0.57125867,1823.8,1823.7,4.0298]
[1680327534462,0.57125867,1823.8,1823.7,4.28321311]
[1680327537061,0.57125867,1823.8,1823.7,3.46121311]
[1680327537359,1.42814668,1823.9,1823.7,9.58259931]
[1680327538557,0.57125867,1823.9,1823.7,9.58259931]
[1680327553262,60.26125867,1823.9,1823.7,9.58259931]
[1680327554969,0.57125867,1823.8,1823.7,9.58259931]
[1680327556568,61.11814668,1823.9,1823.7,9.58259931]
[1680327556864,0.57125867,1823.8,1823.7,9.58259931]
[1680327567076,1.42814668,1823.8,1823.7,9.58259931]
[1680327567268,0.57125867,1823.8,1823.7,9.58259931]
[1680327568978,0.85688801,1823.8,1823.7,9.58259931]
[1680327569277,60.54688801,1823.8,1823.7,9.58259931]
[1680327570773,61.36930491,1823.8,1823.5,1.43636197]
[1680327571078,0.57153163,1823.6,1823.5,0.86182617]
[1680327572274,0.57153163,1823.6,1823.5,1.43645658]
[1680327572878,0.57153163,1823.6,1823.5,0.86182617]
[1680327575068,0.85730491,1823.6,1823.4,2.51951409]
[1680327575270,0.5724695,1823.5,1823.4,2.51951409]
[1680327575473,0.5724695,1823.5,1823.4,3.19955078]
[1680327576978,0.5724695,1823.5,1823.4,2.38355078]
[1680327578382,0.5724695,1823.5,1823.4,2.57579683]
[1680327586087,0.5724695,1823.5,1823.4,1.89576014]
[1680327588888,1.67930491,1823.5,1823.4,2.20519587]
[1680327589088,2.67930491,1823.5,1823.4,1.05512215]
[1680327589388,2.67930491,1823.5,1823.4,1.63022794]
[1680327590184,2.67930491,1823.5,1823.4,0.76735184]
[1680327592289,1.67930491,1823.5,1823.4,0.76735184]
[1680327595494,2.67930491,1823.5,1823.4,0.76735184]
[1680327595695,1.67930491,1823.5,1823.4,0.76735184]
[1680327596194,1.822,1823.5,1823.4,0.19224605]
[1680327596494,2.96462743,1823.5,1823.4,0.10212548]
[1680327597500,2.96462743,1823.5,1823.3,0.57510579]
[1680327597703,1.8575152,1823.4,1823.3,0.57510579]
[1680327598301,0.8575152,1823.4,1823.3,0.57510579]
[1680327598607,0.8575152,1823.4,1823.2,1.43798189]
[1680327598907,1.4292629,1823.4,1823.2,1.43746522]
[1680327599205,1.4292629,1823.4,1823.2,0.57458912]
[1680327599407,0.5717477,1823.3,1823.2,0.57458912]
[1680327599602,1.4292629,1823.4,1823.2,1.43746522]
[1680327600802,1.4292629,1823.4,1823.2,0.57458912]
[1680327601200,0.5717477,1823.3,1823.2,0.57458912]
[1680327603007,1.4292629,1823.4,1823.2,0.57458912]
[1680327603707,0.5717477,1823.3,1823.2,0.57458912]
[1680327604010,1.4292629,1823.4,1823.2,0.57458912]
[1680327605308,0.5717477,1823.4,1823.2,0.57458912]
[1680327605510,61.1192629,1823.5,1823.3,1.39658912]
[1680327605703,60.2617477,1823.5,1823.4,0.57458912]
[1680327606207,60.2617477,1823.5,1823.4,1.46756189]
[1680327606708,60.2617477,1823.5,1823.4,2.46756189]
[1680327606913,59.69,1823.5,1823.4,9.30718982]
[1680327607104,59.69,1823.5,1823.4,8.7326007]
[1680327607814,59.69,1823.5,1823.4,8.7266007]
[1680327608722,59.69,1823.5,1823.4,7.7266007]
[1680327610004,59.69,1823.5,1823.4,8.26441914]
[1680327614020,59.69,1823.5,1823.4,8.31144594]
[1680327615721,0.5717477,1823.6,1823.4,8.31144594]
[1680327616022,0.8575152,1823.7,1823.5,3.78242539]
[1680327616214,1.42953448,1823.6,1823.5,3.78242539]
[1680327616415,0.8575152,1823.6,1823.5,0.57462539]
[1680327617325,1.4295666,1823.6,1823.5,0.57462539]
[1680327618523,1.4295666,1823.6,1823.5,3.78242539]
[1680327619323,0.5720514,1823.6,1823.5,3.78242539]
[1680327619527,1.4295666,1823.6,1823.5,3.78242539]
[1680327621924,0.5720514,1823.6,1823.5,3.78242539]
[1680327622127,1.4295666,1823.6,1823.5,3.78242539]
[1680327622624,0.5720514,1823.6,1823.5,3.78242539]
[1680327622817,1.4295666,1823.6,1823.5,3.78242539]
[1680327623124,0.5720514,1823.6,1823.5,3.78242539]
[1680327624413,1.4295666,1823.6,1823.5,3.78242539]
[1680327624823,0.5720514,1823.6,1823.5,3.78242539]
[1680327625027,0.5720514,1823.6,1823.5,4.0706761]
[1680327627031,0.5720514,1823.6,1823.5,4.8926761]
[1680327629031,0.5720514,1823.6,1823.5,5.01056733]
[1680327632437,1.4295666,1823.7,1823.5,5.01056733]
[1680327632639,1.4295666,1823.7,1823.6,0.57462516]
[1680327632828,0.5720514,1823.7,1823.6,1.57462516]
[1680327633029,0.5720514,1823.7,1823.6,0.57462516]
[1680327633530,0.5720514,1823.7,1823.6,1.57462516]
[1680327634230,0.5720514,1823.7,1823.6,0.57462516]
[1680327636532,0.5720514,1823.7,1823.6,1.57462516]
[1680327637032,0.5720514,1823.7,1823.6,8.47432578]
[1680327644145,0.5720514,1823.7,1823.6,8.59210872]
[1680327644942,0.5720514,1823.7,1823.6,9.45498482]
[1680327647041,0.5720514,1823.7,1823.6,10.26998482]
[1680327648547,0.5720514,1823.7,1823.6,9.69535966]
[1680327650444,0.8575152,1823.7,1823.6,9.69535966]
[1680327655754,0.8575152,1823.7,1823.6,8.69535966]
[1680327656952,0.8575152,1823.7,1823.6,7.87335966]
[1680327663960,60.5475152,1823.7,1823.6,7.87335966]
[1680327667763,59.69,1823.7,1823.6,7.87335966]
[1680327668365,60.83262743,1823.7,1823.6,7.87335966]
[1680327677181,60.83262743,1823.7,1823.6,7.05835966]
[1680327682988,59.69,1823.7,1823.6,7.05835966]
[1680327683486,60.83262743,1823.7,1823.6,7.05835966]
[1680327684187,59.69,1823.7,1823.6,7.05835966]
[1680327685081,60.83262743,1823.7,1823.6,7.05835966]
[1680327685280,60.83262743,1823.7,1823.6,7.88035966]
[1680327685281,59.69,1823.7,1823.6,7.88035966]
[1680327685781,59.69,1823.7,1823.6,7.01748356]
[1680327686286,59.69,1823.7,1823.6,7.88061467]
[1680327686589,59.69,1823.7,1823.6,7.01748356]
[1680327687090,59.69,1823.7,1823.6,7.88061002]
[1680327687283,59.69,1823.7,1823.6,7.01748356]
[1680327692596,60.54958228,1823.7,1823.6,9.16755728]
[1680327692787,60.54958228,1823.7,1823.6,9.84751754]
[1680327693094,60.54958228,1823.7,1823.6,9.89691294]
[1680327693489,61.12258604,1823.7,1823.6,9.89691294]
[1680327694296,61.12258604,1823.7,1823.6,8.89691294]
[1680327694794,61.12258604,1823.7,1823.6,9.71191294]
[1680327694993,60.26300376,1823.7,1823.6,9.71191294]
[1680327698691,60.26300376,1823.7,1823.6,9.03195268]
[1680327701202,61.12258604,1823.7,1823.6,9.03195268]
[1680327701999,60.26300376,1823.7,1823.6,9.03195268]
[1680327709103,59.69,1823.7,1823.6,8.56183791]
[1680327709305,60.26300376,1823.7,1823.6,10.71186955]
[1680327709502,59.69,1823.7,1823.6,10.71186955]
[1680327709699,59.69,1823.7,1823.6,9.71186955]
[1680327709899,59.69,1823.7,1823.6,9.71186236]
[1680327711499,59.69,1823.7,1823.6,10.81996178]
[1680327712706,59.69,1823.7,1823.6,10.86297269]
[1680327713205,59.69,1823.7,1823.6,10.86070756]
[1680327736620,53.78174421,1823.7,1823.6,9.42384882]
[1680327736824,53.78174421,1823.7,1823.6,16.54284882]
[1680327736825,50.08174421,1823.7,1823.6,16.54284882]
[1680327737122,46.38174421,1823.7,1823.6,16.54284882]
[1680327747023,42.68174421,1823.7,1823.6,14.91284882]
[1680327757034,42.68174421,1823.7,1823.6,14.90784882]
[1680327757430,42.68174421,1823.7,1823.6,16.62804267]
[1680327757734,42.68174421,1823.7,1823.6,14.90784882]
[1680327760640,38.98174421,1823.7,1823.6,16.54884882]
[1680327760936,34.87174421,1823.7,1823.6,18.26904267]
[1680327761739,34.87174421,1823.7,1823.6,16.62804267]
[1680327762040,34.87174421,1823.7,1823.6,14.90784882]
[1680327762637,34.87174421,1823.7,1823.6,16.62804267]
[1680327765544,31.17174421,1823.7,1823.6,18.26904267]
[1680327766945,31.17174421,1823.7,1823.6,16.62804267]
[1680327770142,31.17174421,1823.7,1823.6,11.14404267]
[1680327770350,31.17174421,1823.7,1823.6,7.78984882]
[1680327770647,31.17174421,1823.7,1823.6,9.12250508]
[1680327776858,31.17174421,1823.7,1823.6,8.0130546]
[1680327780356,31.17174421,1823.7,1823.6,7.33309565]
[1680327780949,31.17174421,1823.7,1823.6,6.18350996]
[1680327781447,31.74474797,1823.7,1823.6,6.18350996]
[1680327781649,31.17174421,1823.7,1823.6,6.18350996]
[1680327783455,31.17174421,1823.7,1823.6,7.04540367]
[1680327786257,31.99374421,1823.7,1823.6,7.04540367]
[1680327791564,31.99374421,1823.7,1823.6,7.61956663]
[1680327793164,31.99374421,1823.7,1823.6,6.75767292]
[1680327803372,31.17174421,1823.7,1823.6,7.04540367]
[1680327804371,31.17174421,1823.7,1823.6,8.33309565]
[1680327804669,31.17174421,1823.7,1823.6,8.37515241]
[1680327805671,31.17174421,1823.7,1823.6,9.05504558]
[1680327806370,31.17174421,1823.7,1823.6,8.05504558]
[1680327806971,31.17174421,1823.7,1823.6,8.87304558]
[1680327809264,31.17174421,1823.7,1823.6,9.87304558]
[1680327809967,31.17174421,1823.7,1823.6,8.72345989]
[1680327810169,31.17174421,1823.7,1823.6,9.87187389]
[1680327810470,31.17174421,1823.7,1823.6,8.72345989]
[1680327810871,31.17174421,1823.7,1823.6,7.72345989]
[1680327811072,31.17174421,1823.7,1823.6,8.72345989]
[1680327811971,31.17174421,1823.7,1823.6,7.72345989]
[1680327812474,31.17174421,1823.7,1823.6,9.16049606]
[1680327813671,31.17174421,1823.7,1823.6,7.72345989]
[1680327814377,31.17174421,1823.7,1823.6,9.16049606]
[1680327814674,31.17174421,1823.7,1823.6,10.16049606]
[1680327814876,31.17174421,1823.7,1823.6,9.16049606]
[1680327822678,31.17174421,1823.7,1823.6,12.36829606]
[1680327831480,31.17174421,1823.7,1823.6,11.55029606]
[1680327836983,31.17174421,1823.7,1823.6,12.37229606]
[1680327842584,31.17174421,1823.7,1823.6,9.16449606]
[1680327842889,31.17174421,1823.7,1823.6,12.37229606]
[1680327845499,31.17174421,1823.7,1823.6,10.93525989]
[1680327860317,31.17174421,1823.7,1823.6,7.72745989]
[1680327861009,31.17174421,1823.7,1823.6,10.93525989]
[1680327863707,31.17174421,1823.7,1823.6,7.72745989]
[1680327864112,31.17174421,1823.7,1823.6,10.93525989]
[1680327867412,31.17174421,1823.7,1823.6,11.75125989]
[1680327890238,31.17174421,1823.7,1823.6,10.93525989]
[1680327896133,31.17174421,1823.7,1823.6,10.11325989]
[1680327905047,31.17174421,1823.7,1823.6,6.90545989]
[1680327905446,31.17174421,1823.7,1823.6,10.11325989]
[1680327911448,31.17174421,1823.7,1823.6,6.90545989]
[1680327912351,31.17174421,1823.7,1823.6,10.11325989]
[1680327913856,31.17174421,1823.7,1823.6,10.92925989]
[1680327925468,31.17174421,1823.7,1823.6,11.74625989]
[1680327926974,31.17174421,1823.7,1823.6,10.93025989]
[1680327928775,31.17174421,1823.7,1823.6,12.36873602]
[1680327936683,31.74474797,1823.7,1823.6,12.36873602]
[1680327938180,31.74474797,1823.7,1823.6,6.2910354]
[1680327941285,31.17174421,1823.7,1823.6,6.2910354]
[1680327946987,31.17174421,1823.7,1823.6,6.2960354]
[1680327948490,31.17174421,1823.7,1823.6,12.14974]
[1680327949983,31.17174421,1823.7,1823.6,10.71126387]
[1680327950190,31.17174421,1823.7,1823.6,12.1494874]
[1680327950994,31.17174421,1823.7,1823.6,10.71126387]
[1680327951188,31.17174421,1823.7,1823.6,12.14950322]
[1680327969795,31.17174421,1823.7,1823.6,10.71126387]
[1680327970001,31.17174421,1823.7,1823.6,12.14989142]
[1680327970201,31.17174421,1823.7,1823.6,10.71126387]
[1680327979205,31.17174421,1823.7,1823.6,11.53326387]
[1680327994027,31.16731024,1823.7,1823.6,11.53326387]
[1680327994221,31.16731024,1823.7,1823.6,11.57135197]
[1680327998730,31.16731024,1823.7,1823.6,11.56435197]
[1680328002724,31.16731024,1823.7,1823.6,11.56535197]
[1680328006921,31.16731024,1823.7,1823.6,11.56635197]
[1680328014137,31.16731024,1823.7,1823.6,11.57035197]
[1680328017037,31.16731024,1823.7,1823.6,11.56535197]
[1680328030243,31.16731024,1823.7,1823.6,11.56435197]
[1680328045058,31.16731024,1823.7,1823.6,13.28454582]
[1680328056973,31.16731024,1823.7,1823.6,14.10654582]
[1680328064473,21.29331024,1823.7,1823.6,21.23454582]
[1680328064780,0.01519554,1824.1,1823.8,0.15106467]
[1680328065077,0.01519554,1824.1,1824.0,4.0298]
[1680328065372,0.01519554,1824.1,1824.0,12.07940202]
[1680328065574,0.01519554,1824.1,1824.0,10.89514325]
[1680328066371,0.01519554,1824.1,1824.0,12.04528098]
[1680328066575,0.01519554,1824.1,1824.0,11.22328098]
[1680328066881,0.01519554,1824.1,1824.0,10.89214325]
[1680328067276,0.85958228,1824.2,1824.0,12.0420153]
[1680328067485,0.85958228,1824.2,1824.1,1.68341706]
[1680328067871,0.85958228,1824.2,1824.1,7.00951814]
[1680328068775,0.85958228,1824.2,1824.1,7.87193596]
[1680328068971,0.85958228,1824.2,1824.1,7.00951814]
[1680328069177,0.85958228,1824.2,1824.1,7.87181258]
[1680328075085,0.85958228,1824.2,1824.1,11.07961258]
[1680328076487,0.85958228,1824.2,1824.1,4.07009444]
[1680328076888,0.85958228,1824.2,1824.1,3.78255889]
[1680328077083,1.68158228,1824.2,1824.1,3.78255889]
[1680328077588,1.68158228,1824.2,1824.1,0.57475889]
[1680328078084,0.822,1824.2,1824.1,3.78255889]
[1680328079590,1.68140966,1824.2,1824.1,3.78255889]
[1680328080490,1.68140966,1824.2,1824.1,3.92397741]
[1680328082492,0.822,1824.2,1824.1,3.92397741]
[1680328082793,1.6814221,1824.2,1824.1,3.92397741]
[1680328088091,0.822,1824.2,1824.1,3.92397741]
[1680328089891,0.85951396,1824.2,1824.1,4.74597741]
[1680328090090,0.85951396,1824.2,1824.1,5.03347377]
[1680328090293,0.85951396,1824.3,1824.1,11.05697619]
[1680328090595,0.8595524,1824.3,1824.2,0.57481536]
[1680328091098,0.8595524,1824.3,1824.2,1.43707061]
[1680328092605,0.8595524,1824.3,1824.2,0.57481536]
[1680328093098,0.8595524,1824.3,1824.2,1.43707061]
[1680328093497,1.8595524,1824.3,1824.2,1.43707061]
[1680328093997,1.8595524,1824.3,1824.2,0.57481536]
[1680328094300,0.8595524,1824.3,1824.2,1.43707061]
[1680328095204,0.8595524,1824.3,1824.2,0.57481536]
[1680328095391,0.8595524,1824.3,1824.2,1.43707061]
[1680328095700,0.8595524,1824.3,1824.2,1.62965128]
[1680328096495,2.14262743,1824.4,1824.2,1.62965128]
[1680328096696,0.85959917,1824.3,1824.2,1.62965128]
[1680328096898,0.85959917,1824.3,1824.2,0.76739603]
[1680328097100,1.85960262,1824.3,1824.2,1.62965128]
[1680328097601,0.85960262,1824.3,1824.2,1.62965128]
[1680328097904,0.85960262,1824.3,1824.2,1.05483592]
[1680328098203,0.85960262,1824.3,1824.2,1.62967555]
[1680328099403,0.85960262,1824.3,1824.2,0.76741896]
[1680328099602,0.85960262,1824.3,1824.2,1.05483592]
[1680328099803,0.85960262,1824.3,1824.2,1.62967853]
[1680328100003,2.14262743,1824.4,1824.2,0.76742328]
[1680328100203,0.86003474,1824.3,1824.2,1.62967853]
[1680328100407,0.8599907,1824.3,1824.2,1.62967853]
[1680328100608,1.8599907,1824.3,1824.2,1.62967853]
[1680328100903,1.8599907,1824.3,1824.2,0.76742328]
[1680328101107,1.85998332,1824.3,1824.2,0.76742328]
[1680328101306,1.0,1824.3,1824.2,1.62967853]
[1680328101501,1.0,1824.3,1824.2,0.76742328]
[1680328101702,1.0,1824.3,1824.2,1.62967853]
[1680328101999,0.86000258,1824.3,1824.2,1.62967853]
[1680328102203,0.86000258,1824.3,1824.2,1.62968475]
[1680328103106,0.85998591,1824.3,1824.2,1.62968475]
[1680328103406,2.14262743,1824.4,1824.2,0.76744866]
[1680328103607,2.14262743,1824.4,1824.3,0.57486799]
[1680328103810,2.14262743,1824.4,1824.2,1.62970391]
[1680328104109,0.86001,1824.3,1824.2,1.62970391]
[1680328104311,0.86003414,1824.3,1824.2,1.62970391]
[1680328104611,0.8600463,1824.3,1824.2,1.62970666]
[1680328104811,0.86004273,1824.3,1824.2,1.62970666]
[1680328105203,2.14262743,1824.4,1824.2,1.05483592]
[1680328105408,2.14262743,1824.4,1824.3,0.57489884]
[1680328105712,1.14262743,1824.4,1824.3,3.78269884]
[1680328107214,1.14262743,1824.4,1824.3,3.97523063]
[1680328118521,1.68968378,1824.5,1824.3,3.97523063]
[1680328118723,1.14262743,1824.4,1824.3,3.97523063]
[1680328119819,2.14262743,1824.5,1824.3,3.97523063]
[1680328121831,0.85991018,1824.4,1824.3,3.97523063]
[1680328122231,1.14262743,1824.4,1824.3,0.76743063]
[1680328123225,2.68124688,1824.5,1824.3,0.76743063]
[1680328124032,1.14262743,1824.4,1824.3,0.76743063]
[1680328124233,2.68124688,1824.5,1824.3,0.76743063]
[1680328124931,1.14262743,1824.4,1824.3,0.76743063]
[1680328125632,2.68124688,1824.5,1824.3,0.76743063]
[1680328126632,2.68124688,1824.5,1824.3,3.97523063]
[1680328127033,3.50224688,1824.5,1824.3,3.97523063]
[1680328128433,1.14262743,1824.4,1824.3,3.97523063]
[1680328129330,3.50224688,1824.5,1824.3,3.97523063]
[1680328130222,1.14262743,1824.4,1824.3,4.83748588]
[1680328130830,3.50224688,1824.5,1824.3,4.83748588]
[1680328131029,1.14262743,1824.4,1824.3,4.83748588]
[1680328131236,3.50224688,1824.5,1824.3,4.83748588]
[1680328132035,1.14262743,1824.4,1824.3,4.83748588]
[1680328132341,1.14262743,1824.4,1824.3,4.83756626]
[1680328133827,1.14262743,1824.4,1824.3,4.83756397]
[1680328134032,1.14262743,1824.4,1824.3,4.26258704]
[1680328143744,0.86042335,1824.4,1824.3,4.54350194]
[1680328143945,0.86038157,1824.4,1824.3,3.39362989]
[1680328144247,3.50224688,1824.5,1824.3,3.39362989]
[1680328144438,3.50224688,1824.5,1824.4,0.57516414]
[1680328144640,2.50224688,1824.5,1824.4,0.57516414]
[1680328144839,2.50224688,1824.5,1824.4,0.76670456]
[1680328144840,2.50689725,1824.5,1824.4,0.76670456]
[1680328145042,1.35961945,1824.5,1824.4,0.76670456]
[1680328145250,2.50684782,1824.5,1824.4,0.76670456]
[1680328146250,1.35961945,1824.5,1824.4,0.76670456]
[1680328146944,1.36061945,1824.5,1824.4,0.76670456]
[1680328150149,1.36061945,1824.5,1824.4,1.62945068]
[1680328151952,1.36061945,1824.5,1824.4,0.76670456]
[1680328153555,1.36061945,1824.5,1824.4,1.62945068]
[1680328153753,1.36061945,1824.5,1824.4,0.76670456]
[1680328156355,1.36061945,1824.5,1824.4,1.62945068]
[1680328157051,2.50796518,1824.5,1824.4,1.62945068]
[1680328157649,1.36061945,1824.5,1824.4,0.76670456]
[1680328159249,2.50792516,1824.5,1824.4,0.76670456]
[1680328159446,2.50792516,1824.5,1824.4,1.05428654]
[1680328168476,2.50792516,1824.5,1824.4,1.62940362]
[1680328168974,2.50792516,1824.5,1824.4,1.05428654]
[1680328171482,1.68592516,1824.5,1824.4,1.05428654]
[1680328190987,0.53861945,1824.5,1824.4,0.19154042]
[1680328191193,0.86054837,1824.5,1824.4,0.19154042]
[1680328191491,1.96330571,1824.6,1824.4,0.22871006]
[1680328191687,1.96330571,1824.6,1824.5,1.43777557]
[1680328193191,1.96330571,1824.6,1824.5,0.57511023]
[1680328193393,1.96330571,1824.6,1824.5,1.43777557]
[1680328193988,1.96330571,1824.6,1824.5,0.86266534]
[1680328194191,1.96330571,1824.6,1824.5,1.43774685]
[1680328194593,2.52445792,1824.6,1824.5,1.43774685]
[1680328196997,1.70845792,1824.6,1824.5,1.43774685]
[1680328197591,2.70845792,1824.6,1824.5,1.43774685]
[1680328197792,2.70864354,1824.6,1824.5,0.57508151]
[1680328206098,2.70864354,1824.6,1824.5,0.80123306]
[1680328206306,1.70864354,1824.6,1824.5,0.80123306]
[1680328206603,2.70864354,1824.6,1824.5,0.80123306]
[1680328206801,1.70864354,1824.6,1824.5,0.80123306]
[1680328206999,2.53064354,1824.6,1824.5,1.6638984]
[1680328207203,2.53064354,1824.6,1824.5,0.80123306]
[1680328207506,3.53064354,1824.6,1824.5,0.80123306]
[1680328209198,2.38315221,1824.6,1824.5,0.80123306]
[1680328209605,3.53096322,1824.6,1824.5,0.80123306]
[1680328210701,2.38315221,1824.6,1824.5,0.80123306]
[1680328211200,3.53096433,1824.6,1824.5,1.6638984]
[1680328211406,2.53096433,1824.6,1824.5,1.6638984]
[1680328212409,2.53096433,1824.6,1824.5,1.66392634]
[1680328212609,2.53096433,1824.6,1824.5,0.801261]
[1680328212908,2.53096433,1824.6,1824.5,1.66392634]
[1680328213612,3.53096433,1824.6,1824.5,1.66392634]
[1680328215296,2.53096433,1824.6,1824.5,1.08881689]
[1680328216605,3.53096433,1824.6,1824.5,0.80127763]
[1680328217098,3.53096433,1824.6,1824.5,1.66394297]
[1680328217299,2.53096433,1824.6,1824.5,1.66394297]
[1680328217508,3.53096433,1824.6,1824.5,1.66394297]
[1680328218303,2.53096433,1824.6,1824.5,1.66394297]
[1680328218507,3.53096433,1824.6,1824.5,1.66394297]
[1680328219318,2.53096433,1824.6,1824.5,1.66394297]
[1680328220509,2.53096584,1824.6,1824.5,1.66394297]
[1680328221012,2.53096584,1824.6,1824.5,1.08881689]
[1680328222614,2.20515221,1824.6,1824.5,0.80130866]
[1680328222818,3.20515221,1824.6,1824.5,0.80130866]
[1680328223115,4.63431318,1824.6,1824.5,0.80130866]
[1680328223308,3.20515221,1824.6,1824.5,0.80130866]
[1680328223504,4.63431318,1824.6,1824.5,0.80130866]
[1680328227030,3.81231318,1824.6,1824.5,0.80130866]
[1680328235223,3.81231318,1824.6,1824.5,1.663974]
[1680328235420,3.81231318,1824.6,1824.5,0.80130866]
[1680328237021,16.96474052,1824.6,1824.5,0.80130866]
[1680328237516,16.96474052,1824.6,1824.5,0.57515711]
[1680328240422,17.78574052,1824.6,1824.5,0.57515711]
[1680328244628,4.63331318,1824.6,1824.5,0.57515711]
[1680328247033,3.81231318,1824.6,1824.5,0.57515711]
[1680328257850,16.96490143,1824.6,1824.5,0.57515711]
[1680328258051,16.96490143,1824.6,1824.5,0.7740009]
[1680328258352,16.9649361,1824.6,1824.5,0.57515711]
[1680328258747,3.81231318,1824.6,1824.5,0.57515711]
[1680328259052,3.81231318,1824.6,1824.5,0.77399811]
[1680328259946,16.96489065,1824.6,1824.5,0.77399811]
[1680328260556,16.96489065,1824.6,1824.5,0.57515711]
[1680328261447,1.0,1824.5,1824.4,1.43782245]
[1680328261648,1.0,1824.5,1824.4,0.86266534]
[1680328261846,2.14812182,1824.5,1824.4,1.06149835]
[1680328262543,1.0,1824.5,1824.4,1.63672084]
[1680328262943,2.14810698,1824.5,1824.4,1.06149835]
[1680328263350,1.0,1824.5,1824.4,1.63671781]
[1680328263550,1.0,1824.5,1824.4,1.06149835]
[1680328263551,2.1481127,1824.5,1824.4,1.06149835]
[1680328266345,2.1481127,1824.5,1824.4,1.63669988]
[1680328266551,2.1481127,1824.5,1824.4,1.06149835]
[1680328270262,2.9701127,1824.5,1824.4,1.06149835]
[1680328272862,1.9701127,1824.5,1824.4,1.06149835]
[1680328273357,2.9701127,1824.5,1824.4,1.06149835]
[1680328280463,2.9701127,1824.5,1824.4,1.63674234]
[1680328280673,1.822,1824.5,1824.4,1.63674234]
[1680328280963,3.25116097,1824.5,1824.4,1.63674234]
[1680328281166,3.25016097,1824.5,1824.4,0.774077]
[1680328281372,16.40329869,1824.5,1824.4,0.774077]
[1680328281673,16.40329869,1824.5,1824.4,0.57524399]
[1680328282169,19.61109869,1824.5,1824.3,1.99434874]
[1680328282369,1.96883964,1824.4,1824.3,1.99434874]
[1680328283477,1.96883964,1824.4,1824.3,1.1316834]
[1680328286678,7.45283964,1824.4,1824.3,1.1316834]
[1680328286878,8.45283964,1824.4,1824.3,1.1316834]
[1680328287072,8.45383964,1824.4,1824.3,1.1316834]
[1680328289080,8.45383964,1824.4,1824.3,1.33107927]
[1680328289379,1.14783964,1824.4,1824.3,1.33107927]
[1680328289580,1.14783964,1824.4,1824.3,1.61850062]
[1680328289975,1.14783964,1824.4,1824.3,2.19345273]
[1680328290977,1.14783964,1824.4,1824.3,1.33078739]
[1680328316099,6.45796097,1824.5,1824.3,1.33078739]
[1680328316305,6.45796097,1824.5,1824.3,0.77434798]
[1680328316513,1.42916097,1824.4,1824.3,0.19603585]
[1680328316808,11.94196097,1824.5,1824.3,0.77098796]
[1680328317007,2.25016097,1824.4,1824.3,0.19603585]
[1680328318011,2.25016097,1824.4,1824.3,0.13352976]
[1680328321317,15.40464268,1824.4,1824.3,0.13352976]
[1680328322014,2.25016097,1824.4,1824.3,0.13352976]
[1680328323316,15.4045742,1824.4,1824.3,0.13352976]
[1680328324613,2.25016097,1824.4,1824.3,0.13352976]
[1680328325219,5.45796097,1824.4,1824.3,0.13352976]
[1680328325714,18.61237077,1824.4,1824.3,0.13352976]
[1680328326213,18.61237077,1824.4,1824.3,0.70848187]
[1680328326417,15.40457077,1824.4,1824.3,0.70848187]
[1680328326607,15.40457077,1824.4,1824.3,0.13352976]
[1680328326811,18.61237077,1824.4,1824.3,0.13352976]
[1680328328018,2.25016097,1824.4,1824.3,0.70848187]
[1680328328514,5.45796097,1824.4,1824.3,0.13352976]
[1680328328715,18.6123825,1824.4,1824.3,0.13352976]
[1680328330617,2.25016097,1824.4,1824.3,0.70848187]
[1680328331421,5.45796097,1824.4,1824.3,0.70848187]
[1680328331922,5.45796097,1824.4,1824.3,0.13352976]
[1680328332121,5.45796097,1824.4,1824.3,0.70848187]
[1680328332420,5.45796097,1824.4,1824.3,0.13352976]
[1680328333622,6.45796097,1824.4,1824.3,0.13352976]
[1680328334822,6.45796097,1824.4,1824.3,0.70848187]
[1680328335122,5.45796097,1824.4,1824.3,0.70848187]
[1680328335420,0.821,1824.4,1824.3,0.70848187]
[1680328335621,2.25016097,1824.4,1824.3,0.70848187]
[1680328336424,5.45796097,1824.4,1824.3,0.70848187]
[1680328343229,2.25016097,1824.4,1824.3,0.70848187]
[1680328343527,5.45796097,1824.4,1824.3,0.70848187]
[1680328344222,18.61227368,1824.4,1824.3,0.70848187]
[1680328345431,5.45418082,1824.4,1824.3,0.70848187]
[1680328345628,6.45418082,1824.4,1824.3,0.70848187]
[1680328347532,19.60847782,1824.4,1824.3,0.70848187]
[1680328348744,25.09247782,1824.4,1824.3,0.70848187]
[1680328349336,19.60847782,1824.4,1824.3,0.70848187]
[1680328349941,19.60847782,1824.4,1824.3,0.13352976]
[1680328350344,19.60847782,1824.4,1824.3,0.70848187]
[1680328352446,6.45418082,1824.4,1824.3,0.70848187]
[1680328352642,5.45418082,1824.4,1824.3,0.70848187]
[1680328355148,18.60845903,1824.4,1824.3,0.70848187]
[1680328386984,17.79123918,1824.4,1824.3,0.70848187]
[1680328403701,17.79103275,1824.4,1824.3,0.70848187]
[1680328403903,4.63696097,1824.4,1824.3,0.70848187]
[1680328404196,17.79103283,1824.4,1824.3,0.70848187]
[1680328404500,17.79104078,1824.4,1824.3,0.70848187]
[1680328405004,4.63696097,1824.4,1824.3,0.70848187]
[1680328405895,0.86135226,1824.4,1824.3,5.31320181]
[1680328406099,1.14839404,1824.5,1824.3,8.01313408]
[1680328406294,1.14839404,1824.5,1824.4,0.8629211]
[1680328406495,1.14839404,1824.5,1824.4,1.86288709]
[1680328406998,1.14839404,1824.5,1824.4,2.67788709]
[1680328407200,1.70954625,1824.6,1824.4,2.67788709]
[1680328407500,1.14839404,1824.5,1824.4,2.25278901]
[1680328408008,1.14839404,1824.6,1824.4,2.67788709]
[1680328408197,1.14839404,1824.6,1824.5,0.57488935]
[1680328409195,1.14839404,1824.6,1824.5,0.17708839]
[1680328409799,1.14839404,1824.6,1824.5,0.75197774]
[1680328410403,1.14839404,1824.6,1824.5,0.17708839]
[1680328410810,1.14839404,1824.6,1824.5,0.75197774]
[1680328411100,1.14839404,1824.6,1824.5,0.17708839]
[1680328411302,1.14839404,1824.6,1824.5,0.75197774]
[1680328412699,1.14839404,1824.6,1824.5,0.17708839]
[1680328414707,1.70838067,1824.7,1824.5,0.17708839]
[1680328415012,1.14839404,1824.7,1824.5,0.17708839]
[1680328417206,0.85997014,1824.6,1824.5,0.17708839]
[1680328419409,1.85997014,1824.6,1824.5,0.17708839]
[1680328419614,2.14839404,1824.6,1824.5,0.17708839]
[1680328419814,1.0,1824.6,1824.5,0.17708839]
[1680328420119,2.14839404,1824.6,1824.5,0.17708839]
[1680328420413,1.0,1824.6,1824.5,0.17708839]
[1680328421213,2.14839404,1824.7,1824.5,0.17708839]